Cogmind - Beta 16 @@@ ROGUE MODE // 2026.01.21 @ 22:09:17 Player: applejuice Result: Destroyed by U1-ESB(M) with Battle Cannon Performance ------------- Evolutions (0) 0 Regions Visited (3) 600 Robots Destroyed (6) 30 Value Destroyed (196) 196 Prototype IDs (7) 140 Alien Tech Used (0) 0 Bonus (800) 800 TOTAL SCORE: 1766 Bonus ------- Registered with UFD 300 Met Optimus in HQ 500 Cogmind --------- Core Integrity 0/250 Matter 300/300 Energy 19/100 System Corruption 3% Temperature Warm (107) Movement Walking (100) Location -9/Scraptown Parts ------- > --- POWER (1) -------- (None) > --- PROPULSION (2) --- Overtuned Titanium Leg Overtuned Titanium Leg > --- UTILITY (2) ------ Small Storage Unit Large Storage Unit > --- WEAPON (2) ------- (None) > --- INVENTORY (15) --- Heavy Ion Engine Heavy Ion Engine Carbon-fiber Leg Overtuned Titanium Leg VSS Leg Improved Heat Sink Improved Heat Sink Advanced Heat Sink Improved Targeting Computer Improved Targeting Computer Overtuned Pulse Rifle CPS Tube (2) Peak State ------------ > --- POWER ------------ Light Deuterium Engine > --- PROPULSION ------- Overtuned Titanium Leg Overtuned Titanium Leg > --- UTILITY ---------- Small Storage Unit Large Storage Unit > --- WEAPON ----------- Overtuned Pulse Rifle Beamcaster > --- INVENTORY -------- Heavy Ion Engine Heavy Ion Engine Carbon-fiber Leg Overtuned Titanium Leg Overtuned Titanium Leg Overtuned Titanium Leg VSS Leg Improved Heat Sink Improved Heat Sink Advanced Heat Sink Improved Targeting Computer Improved Targeting Computer Shock Rifle CPS Tube [Rating: 23] Favorites ----------- Power Heavy Ion Engine Engine Heavy Ion Engine Propulsion Aluminum Leg Leg Aluminum Leg Utility Small Storage Unit Device Terrain Scanner Storage Small Storage Unit Weapon EM Pulse Gun Energy Gun EM Pulse Gun Build | -11 -10 -10 -9 ------- Run | Yrd Mat Sub Scr Slots Evolved . | . . . . Power . | . . . . Propulsion . | . . . . Utility . | . . . . Weapon . | . . . . Parts Attached 18 | 5 4 . 9 Power 4 | 1 2 . 1 Engine 4 | 1 2 . 1 Core . | . . . . Reactor . | . . . . Propulsion 6 | 1 1 . 4 Treads . | . . . . Leg 6 | 1 1 . 4 Wheel . | . . . . Hover . | . . . . Flight . | . . . . Utility 3 | 1 1 . 1 Device 1 | . 1 . . Storage 2 | 1 . . 1 Processor . | . . . . Hackware . | . . . . Protection . | . . . . Artifact . | . . . . Weapon 5 | 2 . . 3 Energy Gun 5 | 2 . . 3 Energy Cannon . | . . . . Ballistic Gun . | . . . . Ballistic Cannon . | . . . . Launcher . | . . . . Special Weapon . | . . . . Impact Weapon . | . . . . Slashing Weapon . | . . . . Piercing Weapon . | . . . . Special Melee Weapon . | . . . . Unidentified Prototypes 1 | . 1 . . Parts Lost 6 | . . . 6 Power 1 | . . . 1 Propulsion 2 | . . . 2 Utility . | . . . . Weapon 3 | . . . 3 Highest Loss Streak 6 | . . . 6 To Critical Strikes 1 | . . . 1 Average Backups 8 | 1 3 4 9 Power 1 | . 1 1 1 Propulsion 2 | . 1 2 2 Utility 1 | . . . 2 Weapon 2 | . 1 1 2 Tool/Special . | . . . . Unused Backups 15 | . 1 . 14 Power 2 | . 1 . 1 Propulsion 5 | . . . 5 Utility 5 | . . . 5 Weapon 2 | . . . 2 Tool/Special 1 | . . . 1 Average Slot Usage (%) 74 | . 78 100 71 Engine 13 | . 14 14 13 Leg 27 | . 18 28 27 Device 3 | . 3 14 2 Storage 23 | . 14 14 25 Energy Gun 4 | . 28 28 . Peak Build Rating 23 | 5 9 9 23 Average Rating 8 | 4 7 9 8 On Entrance 5 | . 5 9 9 Avg Prop Armor Cover (%) 12 | . . . 12 Naked Turns . | . . . . Heaviest Build 41 | 14 18 18 41 Greatest Support 38 | 10 20 20 38 Greatest Overweight (x) 4 | 4 1 . 1 Average Overweight (x) . | 1 . . . Largest Inventory Capacity 15 | 8 8 8 15 Average Capacity 12 | 7 8 8 13 Most Carried 15 | 3 5 5 15 Average Carried 8 | 1 3 4 9 Final Capacity 15 | 8 8 8 15 Final Carried 12 | 3 4 5 12 Class Distribution -------------------- 100% | Mutant Dominant Class ---------------- Mutant | -10/Materials Mutant | -10/Subcaves Mutant | -9/Scraptown Resources | -11 -10 -10 -9 ----------- Run | Yrd Mat Sub Scr Matter Collected 533 | 142 53 95 243 Remotely . | . . . . Salvage Created 278 | . 147 . 131 Parts 10 | . 4 . 6 Haulers Intercepted . | . . . . Recyclers Shooed . | . . . . Parts Field Recycled . | . . . . Retrieved Matter . | . . . . Parts Self-Destructed 2 | . . 2 . Prevented . | . . . . Parts Restored . | . . . . Kills | -11 -10 -10 -9 ------- Run | Yrd Mat Sub Scr Combat Hostiles Destroyed 5 | . 3 . 2 Guns 1 | . . . 1 AOE 3 | . 2 . 1 Classes Destroyed 4 | . 2 . 2 Builder 1 | . 1 . . Grunt 3 | . 3 . . Explorer 1 | . . . 1 Scrapper 1 | . . . 1 Best Kill Streak 4 | . 4 . 2 Combat Bots Only 3 | . 3 . 2 Max Kills in Single Turn 2 | . 2 . 1 Gunslinging . | . . . . Exploded 2 | . 2 . 1 Melee . | . . . . Uniques/NPCs Destroyed . | . . . . Combat | -11 -10 -10 -9 -------- Run | Yrd Mat Sub Scr Hostile Shots Fired 85 | . 11 1 73 Missed 19 | . 3 1 15 Hits 66 | . 8 . 58 Projectile 66 | . 8 . 58 Critical Strikes 5 | . . . 5 Damage Taken 1112 | . 135 . 977 Core 261 | . 61 . 200 Absorbed by Shields . | . . . . Core Remaining (%) 100 | 100 . . . Volleys Fired 17 | . 7 . 10 Largest 2 | . 2 . 2 Hottest 125 | . 80 . 125 Shots Fired 27 | . 14 . 13 Gun 27 | . 14 . 13 Cannon . | . . . . Launcher . | . . . . Special . | . . . . Kinetic . | . . . . Thermal 7 | . . . 7 Explosive . | . . . . Electromagnetic 20 | . 14 . 6 Robot Hit Streak 11 | . 8 . 11 Robot Miss Streak 4 | . 2 . 4 Penetration Max . | . . . . Secondary Targets . | . . . . Shots Hit Robots 19 | . 11 . 8 Core Hits 7 | . 4 . 3 Critical Kills . | . . . . Critical Parts Destroyed . | . . . . Critical Strikes . | . . . . Melee Attacks . | . . . . Impact . | . . . . Slashing . | . . . . Piercing . | . . . . Sneak Attacks . | . . . . Combat Hostiles . | . . . . Follow-up Attacks . | . . . . Damage Inflicted 465 | . 286 . 179 Guns 288 | . 152 . 136 Cannons . | . . . . Explosions 177 | . 134 . 43 Melee . | . . . . Ramming . | . . . . Kinetic . | . . . . Thermal 264 | . 134 . 130 Explosive . | . . . . Electromagnetic 201 | . 152 . 49 Impact . | . . . . Slashing . | . . . . Piercing . | . . . . Highest Corruption 3 | . 3 3 3 Average Corruption 2 | . 2 3 3 Corruption Purged . | . . . . Corruption Blocked . | . . . . Effects 60 | . 4 5 51 Message Errors 18 | . 1 3 14 Matter Fused 15 | . . 1 14 Heat Flow Errors 11 | . 2 1 8 Energy Discharges 9 | . 1 . 8 Parts Fused 1 | . . . 1 Data Loss (minor) 4 | . . . 4 Data Loss (major) 1 | . . . 1 Alerts 1 | . . . 1 Overload Shots . | . . . . Overflow Damage . | . . . . Projectiles . | . . . . Explosions . | . . . . Melee . | . . . . Knockbacks . | . . . . Impact . | . . . . Kinetic . | . . . . Secondary . | . . . . Self-Inflicted Damage 72 | . 39 . 33 Shots 2 | . 1 . 1 Rammed 1 | . . . 1 Targets Rammed 1 | . . . 1 Kicked . | . . . . Crushed . | . . . . Highest Temperature 400 | . 339 105 400 Average Temperature 144 | . 131 66 151 Received Heat Transfer 603 | . 54 . 549 Effects 2 | . . . 2 Shutdowns 1 | . . . 1 Matter Decay 1 | . . . 1 Siege Activations . | . . . . Martial Activations . | . . . . Shielding Activations . | . . . . Robots Disrupted . | . . . . Combat Hostiles . | . . . . Robots Corrupted 1 | . 1 . . Combat Hostiles 1 | . 1 . . Parts Fried . | . . . . Impact Corruptions . | . . . . Robots Melted . | . . . . Combat Hostiles . | . . . . Parts Melted . | . . . . Heat Transferred 399 | . 200 . 199 Parts Sabotaged . | . . . . Parts Stolen . | . . . . Parts Stripped . | . . . . Power Chain Reactions 3 | . 2 . 1 Alert | -11 -10 -10 -9 ------- Run | Yrd Mat Sub Scr Maximum Alert Level . | . . . . Low Security (%) 100 | 100 100 . . Level 1 . | . . . . Level 2 . | . . . . Level 3 . | . . . . Level 4 . | . . . . Level 5 . | . . . . High Security . | . . . . Max Security . | . . . . Peak Influence 70 | . 70 . . Initial . | . . . . Average 17 | . 21 . . Influence Increases 85 | . 85 . . Destroy 0b10 Robot/C 60 | . 60 . . Destroy 0b10 Robot/NC 5 | . 5 . . Destroy Leader 10 | . 10 . . Successful Hack 5 | . 5 . . Destroy Structure 5 | . 5 . . Influence Decreases 85 | . 45 40 . Entered New Map 20 | . . 20 . Time Decay 65 | . 45 20 . Squads Dispatched 1 | . 1 . . Investigation 1 | . 1 . . Extermination . | . . . . Reinforcement . | . . . . Assault . | . . . . Garrison . | . . . . Intercept . | . . . . Searches Triggered . | . . . . Construction Impeded . | . . . . Haulers Reinforced . | . . . . Active Scanning Responses . | . . . . Cargo Convoy Interrupts . | . . . . Stealth | -11 -10 -10 -9 --------- Run | Yrd Mat Sub Scr Distress Signals . | . . . . Communications Jammed . | . . . . Distress Signals . | . . . . Times Spotted 24 | . 3 3 18 Peak Tracking Total 5 | . 3 2 5 Tactical Retreats . | . . . . Traps | -11 -10 -10 -9 ------- Run | Yrd Mat Sub Scr Traps Triggered 1 | . 1 . . Indirectly . | . . . . Trap Hack Attempts . | . . . . Triggered . | . . . . Disarmed . | . . . . Reprogrammed . | . . . . Reused . | . . . . Traps Extracted . | . . . . Installed . | . . . . Triggered . | . . . . Machines | -11 -10 -10 -9 ---------- Run | Yrd Mat Sub Scr Machines Disabled . | . . . . Max in Single Turn . | . . . . Machines Repaired . | . . . . Machines Dismantled . | . . . . Machines Sabotaged . | . . . . Overloaded Fab Kills . | . . . . Hacking | -11 -10 -10 -9 --------- Run | Yrd Mat Sub Scr Machines Accessed 11 | . 2 . 9 Terminals 2 | . 2 . . Fabricators . | . . . . Repair Stations . | . . . . Recycling Units . | . . . . Scanalyzers . | . . . . Garrison Access . | . . . . Total Hacks 72 | . 4 . 68 Successful 71 | . 3 . 68 Failed 1 | . 1 . . Catastrophic . | . . . . Database Lockouts . | . . . . Manual 8 | . 6 . 2 Terminals 4 | . 4 . . Fabricators . | . . . . Repair Stations . | . . . . Recycling Units . | . . . . Scanalyzers . | . . . . Garrison Access . | . . . . Terminal Hacks 68 | . . . 68 Record 60 | . . . 60 Robot Analysis 7 | . . . 7 Proto ID Catalog 1 | . . . 1 Fabricator Hacks . | . . . . Repair Station Hacks . | . . . . Recycling Unit Hacks . | . . . . Scanalyzer . | . . . . Garrison Access Hacks . | . . . . Unauthorized Hacks 3 | . 3 . . Terminals 3 | . 3 . . Botnet 2 | . 2 . . Operators 1 | . 1 . . Fabricators . | . . . . Repair Stations . | . . . . Recycling Units . | . . . . Scanalyzers . | . . . . Garrison Access . | . . . . Data Cores Recovered . | . . . . Used . | . . . . Hacking Detections 2 | . 2 . . Full Trace Events 1 | . 1 . . Feedback Events . | . . . . Feedback Blocked . | . . . . Robot Schematics Acquired . | . . . . Robots Built . | . . . . Authchips . | . . . . Time . | . . . . Total Robot Build Rating . | . . . . Part Schematics Acquired . | . . . . Parts Built . | . . . . Authchips . | . . . . Time . | . . . . Total Part Build Rating . | . . . . Part Studies Acquired . | . . . . Parts Repaired . | . . . . Time . | . . . . Parts Recycled . | . . . . Recycled Matter . | . . . . Retrieved Matter . | . . . . Retrieved Components . | . . . . Parts Scanalyzed . | . . . . Part Schematics Acquired . | . . . . Parts Damaged . | . . . . Bothacking | -11 -10 -10 -9 ------------ Run | Yrd Mat Sub Scr Used RIF Installer . | . . . . Robots Hacked . | . . . . Non-combat . | . . . . Combat . | . . . . Robot Hacks Applied . | . . . . Relay Couplers Released . | . . . . Fabnet Peak Effective % . | . . . . Robots Rewired . | . . . . Allies Hacked . | . . . . Hacks Repelled . | . . . . Allies | -11 -10 -10 -9 -------- Run | Yrd Mat Sub Scr Total Allies . | . . . . Largest Group . | . . . . Highest-Rated Group . | . . . . Highest-Rated Ally . | . . . . Total Orders . | . . . . Ally Attacks . | . . . . Total Damage . | . . . . Kills . | . . . . Allies Corrupted . | . . . . Allies Melted . | . . . . Intel | -11 -10 -10 -9 ------- Run | Yrd Mat Sub Scr Active Infowar (turns) 734 | . 64 214 456 Terrain 734 | . 64 214 456 Robot Analysis Total 7 | . . . 7 Derelict Logs Recovered . | . . . . Drone Launches . | . . . . Drone Recoveries . | . . . . Exploration | -11 -10 -10 -9 ------------- Run | Yrd Mat Sub Scr Turns Passed 3262 | 58 237 214 2753 Spaces Moved 1837 | 29 131 135 1542 Core 11 | 11 . . . Treads . | . . . . Legs 1826 | 18 131 135 1542 Wheels . | . . . . Hover . | . . . . Flight . | . . . . Fastest Speed 50 | 50 120 120 100 Average Speed 165 | 169 157 120 169 Slowest Speed 250 | 250 190 120 190 Overloaded Moves . | . . . . Propulsion Burnouts . | . . . . Robots Hopped . | . . . . Potential Cave-ins . | . . . . Cave-ins Triggered . | . . . . Exploration Rate (%) 32 | 4 22 17 88 Regions Visited 3 Branch Regions 2 Pre-discovered Areas . | . . . . Known Exits Taken . | . . . . Unknown Exits Taken 3 | 1 1 1 . Scrap Searched 2 | . . . 2 Spaces Dug . | . . . . Terrain Destroyed 9 | . 4 . 5 Melee . | . . . . Projectile 1 | . . . 1 AOE 8 | . 4 . 4 Terrain Rammed . | . . . . Walls Destroyed . | . . . . Machines Disabled . | . . . . Actions | -11 -10 -10 -9 --------- Run | Yrd Mat Sub Scr Total 2031 | 36 148 187 1660 Wait 125 | . . 52 73 Move 1834 | 28 130 134 1542 Hop . | . . . . Pick Up 20 | 3 2 1 14 Fast Attach 11 | 5 4 . 2 Attach 5 | . . . 5 Detach 5 | . 2 . 3 Swap 3 | . . . 3 Drop 10 | . 3 . 7 Fire 17 | . 7 . 10 Melee . | . . . . Ram 1 | . . . 1 Kick . | . . . . Crush . | . . . . Escape Stasis . | . . . . Rewire . | . . . . Trap . | . . . . Miscellaneous . | . . . . Route ------- -11/Scrapyard -10/Materials -10/Subcaves (discovered 3 exits: [*Mat x2] / *Scr) -9/Scraptown (discovered 2 exits: *Fac x2) History --------- Turn | Location | Event 27 | -11/Scrapyard | Discovered new exit (range 15) 59 | -11/Scrapyard | Entered Materials 60 | -10/Materials | Met a group of wandering Federalists 286 | -10/Materials | Discovered new exit (range 8) 296 | -10/Materials | Entered Subcaves 297 | -10/Subcaves | Continued accompanying wandering Federalists (5) 310 | -10/Subcaves | Build established: Mutant 339 | -10/Subcaves | Discovered new exit (range 14) 444 | -10/Subcaves | Discovered new exit (range 7) 496 | -10/Subcaves | Shifting Twisted Machinery released Riot Gun 497 | -10/Subcaves | Shifting Twisted Machinery released Spk. Treads 503 | -10/Subcaves | Wandering Federalist uncovered a shortcut to Scraptown 510 | -10/Subcaves | Entered Scraptown 645 | -9/Scraptown | Visited Spacefarers 723 | -9/Scraptown | Visited Shadow of the Wyrm 1131 | -9/Scraptown | Visited Comm Corps 1218 | -9/Scraptown | Visited Cyclists 1334 | -9/Scraptown | Visited UFD Registry 1334 | -9/Scraptown | Registered with UFD as "Flashninja" 1348 | -9/Scraptown | Visited SPCMW 1418 | -9/Scraptown | Visited TADAMA 1452 | -9/Scraptown | Visited Assassins FH 1627 | -9/Scraptown | Entered Cyclist Reading Room 1758 | -9/Scraptown | Discovered new exit (range 11) 2218 | -9/Scraptown | Visited Junk Repository 2291 | -9/Scraptown | Visited Science Guys 2758 | -9/Scraptown | Visited Observation Area 2838 | -9/Scraptown | Visited Analyses Database 2916 | -9/Scraptown | Met Optimus 2916 | -9/Scraptown | Accepted into 0bPrime 3055 | -9/Scraptown | Visited Junk Repository 3069 | -9/Scraptown | Civil war broke out across Scraptown 3144 | -9/Scraptown | Identified exit to Factory 3145 | -9/Scraptown | Lost 7 allies 3239 | -9/Scraptown | Core integrity fell below 50% 3245 | -9/Scraptown | Core integrity fell below 20% 3263 | -9/Scraptown | Destroyed by U1-ESB(M) with Battle Cannon Last Messages --------------- malfunctioning. 03237_ System corrupted: Matter fused (-9). 03237_ Ovr. Titanium Leg destroyed. 03238_ Slammed into 6I-DSU(g). 03239_ Acquired 94 matter. 03239_ O9-B53(j) heat spikes uncontrollably. 03242_ Shock Rifle destroyed. 03244_ Ovr. Titanium Leg destroyed. 03244_ Knocked back. 03244_ Critical hit (Destroy). 03244_ Lgt. Deuterium Engine destroyed. 03248_ Acquired 20 matter. 03250_ 6I-DSU(g) destroyed. 03250_ Critical hit (Burn: +50). 03260_ Bolt penetrates Machine. 03260_ Penetrated by Bolt. 03261_ 9Y-CF8(h) heat spikes uncontrollably. 03263_ O9-B53(j) cannibalizes Corrupted VSS Leg to repair Ovr. Titanium Leg. 03263_ Penetrated by Bolt. Map ----- +----------------------------------------------------+ | ?????????????????????????????????????????????????? | | ?????????????????????????????????????????????????? | | ?????????????????????????????????????????????????? | | ?????????????????????????????????????????????????? | | ???????????????????????####??????????????????????? | | ???????????????#??????## ##??????